bitfinex/quotes_ETHUSD_20240910
["timestamp","ask_amount","ask_price","bid_price","bid_amount"]
[1725953690160,3.22075177,2364.2,2363.5,7.36]
[1725953690373,4.10557869,2364.2,2363.5,7.36]
[1725953690548,3.22075177,2364.0,2363.5,7.36]
[1725953690750,0.54894518,2363.9,2363.3,0.4239]
[1725953690948,0.54894518,2363.9,2363.1,7.36]
[1725953690949,2.3104,2363.8,2363.1,7.36]
[1725953692365,2.3104,2363.8,2363.0,2.3936]
[1725953692678,2.3104,2363.8,2362.8,10.58075177]
[1725953692679,2.3104,2363.8,2362.9,3.0]
[1725953693776,5.53115177,2363.8,2362.8,7.36]
[1725953693979,5.57455177,2363.6,2362.8,7.36]
[1725953694367,2.3538,2363.6,2362.8,7.36]
[1725953695557,2.3538,2363.6,2362.8,10.66539384]
[1725953696072,2.3538,2363.6,2362.8,10.58075177]
[1725953696466,2.3538,2363.6,2362.9,0.08463356]
[1725953696666,2.3538,2363.6,2362.9,1.38833209]
[1725953697259,3.18072692,2363.9,2362.9,4.38833209]
[1725953697950,0.88482692,2363.8,2362.9,4.38833209]
[1725953699485,0.88482692,2363.7,2362.9,4.38833209]
[1725953699954,0.88482692,2363.7,2362.9,4.30369853]
[1725953700162,1.51121899,2363.7,2362.9,4.30369853]
[1725953700547,2.2833,2363.5,2362.9,4.30369853]
[1725953701297,2.2833,2363.5,2362.9,1.30369853]
[1725953701589,2.2833,2363.5,2362.8,7.36]
[1725953701798,3.16812692,2363.5,2362.8,7.36]
[1725953701995,2.2833,2363.5,2362.8,7.36]
[1725953702485,3.16812692,2363.5,2362.8,7.36]
[1725953702648,3.16812692,2363.5,2362.8,10.58075177]
[1725953702989,2.2833,2363.5,2362.9,1.06653882]
[1725953703209,2.2833,2363.5,2362.9,1.15117326]
[1725953703705,3.16812692,2363.5,2362.9,1.06653882]
[1725953705109,0.88482692,2363.4,2362.9,1.06653882]
[1725953705310,0.88482692,2363.4,2362.6,3.88296004]
[1725953705514,0.88482692,2363.4,2362.7,3.0]
[1725953707495,0.88482692,2363.4,2362.5,10.41913007]
[1725953707496,0.88482692,2363.3,2362.6,3.0]
[1725953708139,5.87919238,2363.8,2362.6,3.0]
[1725953708140,0.88482692,2364.2,2363.4,2.4509]
[1725953708274,0.88482692,2364.3,2363.5,5.30536108]
[1725953708477,0.88482692,2364.5,2364.1,3.22075177]
[1725953708695,3.24182692,2364.6,2364.1,3.22075177]
[1725953708978,0.88482692,2364.7,2364.2,0.08459609]
[1725953709175,3.68426877,2364.8,2364.3,3.22075177]
[1725953709176,0.88482692,2364.8,2364.3,3.22075177]
[1725953709515,0.88482692,2364.9,2364.3,3.22075177]
[1725953710217,0.88482692,2364.9,2364.2,0.08459609]
[1725953710373,0.88482692,2364.9,2364.2,0.41513088]
[1725953711426,2.3537,2364.6,2363.8,5.4762]
[1725953711742,2.3537,2364.6,2363.9,0.084595]
[1725953711895,2.3537,2364.6,2363.9,3.084595]
[1725953712335,2.3537,2364.6,2363.9,6.30534677]
[1725953712535,2.3537,2364.6,2364.0,0.87815468]
[1725953712688,2.3537,2364.6,2364.1,0.08458854]
[1725953714993,2.3537,2364.6,2364.0,0.87815468]
[1725953716857,3.26972692,2364.9,2364.0,0.87815468]
[1725953717519,3.26972692,2364.9,2364.1,0.08459383]
[1725953717838,3.26972692,2364.9,2364.1,0.80294386]
[1725953719001,2.3849,2364.9,2364.1,0.80294386]
[1725953720309,2.3849,2364.9,2364.0,0.87815468]
[1725953720630,3.26972692,2364.9,2364.0,0.87815468]
[1725953720931,3.22075177,2364.6,2363.7,7.36]
[1725953721132,2.2637,2364.6,2363.7,7.44460361]
[1725953721643,2.2637,2364.6,2363.7,10.66535538]
[1725953721843,2.2637,2364.6,2363.8,1.22870166]
[1725953723107,2.2637,2364.6,2363.8,1.14409815]
[1725953723701,2.2637,2364.6,2363.8,1.22869929]
[1725953723902,2.2637,2364.6,2363.8,1.14409815]
[1725953724808,2.4834,2364.5,2363.7,7.36]
[1725953726270,2.4834,2364.5,2363.6,0.77562611]
[1725953726439,2.4834,2364.5,2363.6,3.77562611]
[1725953726992,2.4,2364.4,2363.6,3.77562611]
[1725953727273,2.4,2364.4,2363.6,0.77562611]
[1725953727478,0.32848269,2364.3,2363.6,0.77562611]
[1725953727624,0.32848269,2364.3,2363.5,7.36]
[1725953728026,2.4235,2364.1,2363.5,7.36]
[1725953728327,2.4235,2363.9,2363.5,7.36]
[1725953728532,2.4235,2363.9,2363.1,7.36]
[1725953728728,2.4235,2363.9,2362.9,9.6887]
[1725953728941,3.22075177,2364.0,2362.9,9.6887]
[1725953728942,2.3002,2363.7,2362.9,7.36]
[1725953729735,3.22075177,2363.6,2362.9,7.36]
[1725953729946,2.3002,2363.5,2362.9,7.36]
[1725953730747,5.52095177,2363.4,2362.6,7.36]
[1725953731079,5.52095177,2363.4,2362.4,2.3473]
[1725953731080,3.22075177,2363.4,2362.4,7.36]
[1725953731369,3.22075177,2363.4,2362.4,9.74672618]
[1725953731370,2.89915787,2363.3,2362.4,9.74672618]
[1725953731932,5.55585177,2363.2,2362.4,9.66207518]
[1725953732139,5.55585177,2363.2,2362.4,7.36]
[1725953732338,2.3351,2363.2,2362.4,7.36]
[1725953734152,2.4821,2363.1,2362.4,7.36]
[1725953734336,2.4821,2363.1,2362.1,7.36]
[1725953734548,2.4821,2363.1,2362.2,0.08465812]
[1725953734736,0.57028518,2363.0,2362.2,1.07355393]
[1725953736189,2.4821,2363.1,2362.2,1.07355393]
[1725953736592,2.4821,2363.1,2362.2,0.08465812]
[1725953736745,2.4821,2363.1,2362.1,7.36]
[1725953737148,2.4911,2362.9,2362.1,7.36]
[1725953737349,0.88482692,2363.2,2362.1,7.36]
[1725953737350,2.4053,2362.7,2362.1,7.36]
[1725953738239,2.4053,2362.5,2361.8,27.09]
[1725953738419,2.96790518,2362.5,2361.5,29.5225]
[1725953738832,2.96790518,2362.5,2361.5,32.74325177]
[1725953739111,2.4053,2362.5,2361.5,32.74325177]
[1725953739299,2.4053,2362.5,2361.6,0.08467243]
[1725953739637,2.4053,2362.5,2361.6,3.08467243]
[1725953740647,2.4053,2362.5,2361.6,3.0]
[1725953741242,2.4053,2362.5,2361.5,7.36]
[1725953741429,2.3083,2362.3,2361.5,7.36]
[1725953744217,2.3083,2362.3,2361.4,0.08468242]
[1725953744418,2.3083,2362.3,2361.4,3.0]
[1725953745044,2.3083,2362.3,2361.5,0.08468238]
[1725953745711,2.3083,2362.3,2361.4,3.0]
[1725953745911,2.3083,2362.3,2361.5,3.33107518]
[1725953746126,2.3083,2362.3,2361.4,3.0]
[1725953747244,2.3083,2362.3,2361.4,3.08468764]
[1725953748561,2.3083,2362.3,2361.4,3.0]
[1725953748723,2.3083,2362.3,2361.3,7.36]
[1725953749124,3.22075177,2362.0,2361.3,7.36]
[1725953749384,2.59527518,2361.9,2361.3,7.36]
[1725953752161,2.3393,2361.7,2361.0,27.09]
[1725953752365,2.3393,2361.7,2360.6,15.66075177]
[1725953752366,2.3393,2361.7,2360.7,7.36]
[1725953752572,2.3393,2361.7,2360.7,7.44470919]
[1725953753641,2.3393,2361.7,2360.8,3.0]
[1725953753840,2.3393,2361.7,2360.9,1.04447092]
[1725953758143,2.3393,2361.7,2361.0,0.08470308]
[1725953758546,2.3393,2361.7,2360.9,1.04447092]
[1725953758547,2.3393,2361.7,2360.9,1.12917082]
[1725953759288,2.3393,2361.7,2360.9,1.04447092]
[1725953759447,2.3393,2361.7,2360.7,7.36]
[1725953760388,2.3393,2361.7,2360.8,0.0847122]
[1725953760675,2.3393,2361.7,2360.7,7.36]
[1725953764444,2.3393,2361.7,2360.7,10.58075177]
[1725953764747,2.3393,2361.7,2360.8,1.06654671]
[1725953764989,2.3393,2361.7,2360.8,1.1512599]
[1725953765484,2.3393,2361.7,2361.4,3.22075177]
[1725953765787,2.3393,2361.7,2361.5,0.0846842]
[1725953766342,2.296,2362.6,2361.5,0.0846842]
[1725953766653,2.296,2362.4,2361.2,3.0]
[1725953766856,2.296,2362.4,2361.1,5.4674]
[1725953767252,2.296,2362.4,2361.1,3.0]
[1725953768764,2.2753,2362.2,2361.1,3.0]
[1725953770278,2.2753,2362.2,2361.2,3.30544221]
[1725953770602,2.2753,2362.2,2361.3,3.71523457]
[1725953770803,2.2753,2362.2,2361.4,3.22075177]
[1725953771102,2.2753,2362.2,2361.5,0.08468207]
[1725953772705,2.2753,2362.2,2361.6,3.22075177]
[1725953772871,2.2753,2362.2,2361.8,3.22075177]
[1725953773070,2.2745,2362.9,2362.0,3.22075177]
[1725953773410,2.2745,2362.9,2362.4,3.22075177]
[1725953774267,2.2745,2362.9,2362.2,6.30540031]
[1725953777832,2.2745,2362.9,2362.2,3.08464854]
[1725953778031,2.2745,2362.9,2362.3,3.0]
[1725953778339,2.2745,2362.9,2362.4,0.30846485]
[1725953778647,6.22075177,2364.0,2362.5,0.08465163]
[1725953778648,2.485,2363.6,2362.5,0.08465163]
[1725953779749,4.1043189,2363.5,2362.5,0.08465163]
[1725953780054,2.485,2363.4,2362.5,0.08465163]
[1725953780203,2.3292,2363.2,2362.5,0.08465163]
[1725953780642,2.3292,2363.5,2362.7,2.4309]
[1725953780846,2.3292,2363.5,2362.8,0.08463479]
[1725953781057,2.3292,2363.5,2362.7,3.08463712]
[1725953781210,2.3292,2363.5,2362.7,3.0]
[1725953781411,2.63752,2363.4,2362.5,3.0]
[1725953781615,2.63752,2363.4,2362.4,0.30846485]
[1725953782277,2.63752,2363.4,2362.5,0.08464555]
[1725953782694,2.63752,2363.4,2362.5,3.08464555]
[1725953787606,2.3102,2363.3,2362.3,7.36]
[1725953787818,2.66230871,2363.3,2362.4,3.0]
[1725953788512,2.3102,2363.2,2362.4,3.0]
[1725953789212,2.3102,2363.2,2362.3,7.36]
[1725953789372,2.57643087,2363.1,2362.3,7.36]
[1725953789745,2.57643087,2363.1,2362.2,19.73]
[1725953790604,2.57643087,2363.1,2362.1,7.36]
[1725953791703,2.4802,2363.0,2362.1,7.36]
[1725953791865,2.4802,2362.9,2362.1,7.36]
[1725953792062,2.4802,2362.7,2362.1,7.36]
[1725953792309,2.4802,2362.7,2362.1,7.4446637]
[1725953792514,2.4802,2362.7,2362.1,7.36]
[1725953795331,2.4802,2362.7,2361.9,19.73]
[1725953798669,2.4802,2362.7,2361.8,7.36]
[1725953798818,2.4082,2362.5,2361.9,3.0]
[1725953800421,2.4082,2362.5,2361.6,7.80441135]
[1725953800620,2.4082,2362.5,2361.6,7.36]
[1725953800922,2.3908,2362.3,2361.6,7.36]
[1725953801836,2.3908,2362.3,2361.3,7.99054422]
[1725953802038,2.4152,2362.1,2361.3,7.99054422]
[1725953802220,2.4152,2362.1,2361.3,8.07523167]
[1725953802731,3.29876713,2362.1,2361.1,30.31075177]
[1725953802962,3.87026366,2362.2,2361.2,0.0846931]
[1725953802963,2.3397,2362.0,2361.2,0.0846931]
[1725953803650,2.3397,2362.0,2361.2,3.0846931]
[1725953803849,2.3397,2362.0,2361.2,3.0]
[1725953804224,2.3397,2362.0,2361.2,3.08469308]
[1725953804430,2.7269779,2362.0,2361.2,7.46173114]
[1725953805267,2.7269779,2362.0,2361.2,7.37703806]
[1725953805853,2.7269779,2362.0,2361.2,7.46173189]
[1725953807358,2.7269779,2362.0,2361.2,3.08469383]
[1725953811268,3.61054503,2362.0,2361.2,3.08469383]
[1725953811470,2.3397,2362.0,2361.3,3.22075177]
[1725953812412,2.3397,2362.0,2361.2,3.08469383]
[1725953812939,3.22326713,2362.0,2361.2,3.08469383]
[1725953813148,2.3462,2361.9,2361.2,3.0]
[1725953813345,3.22976713,2361.9,2361.2,3.0]
[1725953813507,2.66917671,2361.8,2361.1,7.36]
[1725953813708,2.66917671,2361.8,2360.9,6.22075177]
[1725953813917,2.66917671,2361.8,2361.0,3.0]
[1725953814706,2.66917671,2361.8,2361.1,0.08469757]
[1725953816734,2.66917671,2361.8,2361.0,3.0]
[1725953816934,2.3462,2361.6,2361.0,3.0]
[1725953818469,2.3462,2361.6,2361.1,3.22075177]
[1725953820615,2.3462,2361.6,2361.0,3.08469974]
[1725953820887,2.3462,2361.6,2361.0,3.0]
[1725953821188,2.3462,2361.6,2360.8,7.36]
[1725953821393,2.3462,2361.6,2360.9,3.0]
[1725953821394,2.58082,2361.6,2360.9,3.0]
[1725953821882,2.58082,2361.6,2360.8,7.36]
[1725953822087,2.3551,2361.5,2360.8,7.36]
[1725953822246,3.23866713,2361.5,2360.8,7.36]
[1725953822451,2.3551,2361.3,2360.8,7.36]
[1725953822641,2.3551,2361.3,2360.7,19.73]
[1725953828181,2.3551,2361.3,2360.5,3.22075177]
[1725953828353,2.3551,2361.3,2360.5,3.30546892]
[1725953830086,2.3551,2361.3,2360.5,3.22075177]
[1725953830287,2.7459071,2361.3,2360.5,5.86737337]
[1725953830495,2.7459071,2361.3,2360.5,6.31294112]
[1725953830689,2.7459071,2361.3,2360.5,6.3129867]
[1725953830851,2.7459071,2361.3,2360.5,2.6466216]
[1725953831052,2.7459071,2361.3,2360.6,1.30066216]
[1725953832014,2.7459071,2361.3,2360.4,10.8056453]
[1725953832015,2.7459071,2361.3,2360.4,10.36]
[1725953832297,2.4919,2361.2,2360.4,7.36]
[1725953832802,2.4919,2361.2,2360.5,3.22075177]
[1725953833102,2.4919,2361.2,2360.5,3.30546913]
[1725953835008,2.4919,2361.2,2360.5,0.08471736]
[1725953835199,3.00106249,2361.2,2360.5,0.08471736]
[1725953835609,3.00106249,2361.2,2360.4,7.36]
[1725953836071,1.39272962,2361.2,2360.4,7.36]
[1725953836272,2.3905,2361.1,2360.4,7.36]
[1725953837102,2.3905,2361.1,2360.2,19.73]
[1725953837413,2.3905,2361.1,2360.1,13.58075177]
[1725953837414,2.76882296,2361.1,2360.3,6.33107518]
[1725953837611,2.76882296,2361.1,2360.1,13.58075177]
[1725953837795,2.76882296,2361.1,2360.3,3.22075177]
[1725953837995,2.76882296,2361.1,2360.4,0.08472724]
[1725953838311,2.3905,2361.1,2360.4,0.08472724]
[1725953839430,2.3905,2361.1,2360.3,3.30547249]
[1725953839737,2.3905,2361.1,2360.3,3.22075177]
[1725953840293,2.4914,2361.0,2360.3,3.22075177]
[1725953840492,2.4914,2361.0,2360.4,0.08472562]
[1725953840730,2.4914,2361.0,2360.4,0.41527336]
[1725953841608,2.4914,2361.0,2360.5,3.22075177]
[1725953842219,2.4914,2361.2,2360.7,3.22075177]
[1725953842570,2.4914,2361.5,2361.1,3.22075177]
[1725953844129,0.88356713,2361.7,2361.2,0.08469942]
[1725953844447,3.34216713,2361.7,2361.2,0.41524454]
[1725953844594,2.4586,2361.7,2361.2,0.41524454]
[1725953845643,3.34216713,2361.7,2361.2,0.41524454]
[1725953846135,2.357,2361.6,2360.9,3.22075177]
[1725953846347,2.357,2361.6,2361.0,3.0]
[1725953847544,3.24056713,2361.6,2360.8,3.0]
[1725953847741,3.24056713,2361.6,2360.9,0.62207518]
[1725953848828,0.88356713,2361.5,2360.9,3.84282695]
[1725953849029,0.88356713,2361.5,2361.0,3.0]
[1725953849434,3.24056713,2361.6,2361.1,0.08469756]
[1725953850021,0.88356713,2361.5,2361.1,0.08469756]
[1725953850327,3.24056713,2361.6,2361.1,0.08469756]
[1725953850548,0.88356713,2361.5,2361.0,3.0]
[1725953850711,0.88356713,2361.5,2361.0,3.6842827]
[1725953852362,0.88356713,2361.5,2361.1,0.0846975]
[1725953852953,0.88356713,2361.5,2361.0,3.6842827]
[1725953858155,0.88356713,2361.4,2361.0,3.0]
[1725953858530,0.88356713,2361.5,2361.0,3.0]
[1725953858730,0.88356713,2361.4,2361.0,3.0]
[1725953859060,0.88356713,2361.5,2361.0,3.0]
[1725953859237,0.88356713,2361.4,2361.0,3.0]
[1725953860028,0.88356713,2361.4,2361.0,3.62207518]
[1725953861261,0.88356713,2361.5,2361.1,3.22075177]
[1725953861460,3.24056713,2361.6,2361.1,3.22075177]
[1725953861765,3.24056713,2361.6,2361.1,4.23689199]
[1725953862063,0.88356713,2361.5,2361.1,4.23689199]
[1725953862863,0.88356713,2361.5,2361.1,1.01614022]
[1725953867964,0.88356713,2361.6,2361.1,4.23689199]
[1725953868476,0.88356713,2361.7,2361.4,2.3714]
[1725953868772,1.3253507,2361.8,2361.5,0.55921518]
[1725953868773,0.88356713,2361.8,2361.5,0.55921518]
[1725953868976,0.88356713,2361.9,2361.6,0.08468449]
[1725953869146,0.88356713,2362.1,2361.8,2.3668]
[1725953869349,0.88356713,2362.1,2361.9,3.86417589]
[1725953869540,0.88356713,2362.4,2361.9,3.86417589]
[1725953869737,0.88356713,2362.5,2361.9,3.86417589]
[1725953870170,0.88356713,2362.5,2362.0,3.0]
[1725953870385,0.88356713,2362.5,2362.1,0.08466062]
[1725953870882,0.88356713,2362.6,2362.2,2.3668]
[1725953871035,0.88356713,2362.8,2362.5,3.22075177]
[1725953871233,1.3253507,2362.9,2362.3,3.30539895]
[1725953871234,0.88356713,2362.9,2362.3,3.30539895]
[1725953871474,0.88356713,2362.9,2362.4,3.0]
[1725953871678,3.6198507,2363.0,2362.4,3.0]
[1725953871679,3.17806713,2363.0,2362.5,0.08464597]
[1725953871837,3.80512234,2363.0,2362.5,0.08464597]
[1725953872545,2.92155521,2363.0,2362.5,0.08464597]
[1725953874042,2.92155521,2363.0,2362.4,3.08464605]
[1725953874377,2.92155521,2363.0,2362.4,0.08464605]
[1725953875077,2.92155521,2363.0,2362.3,0.08465036]
[1725953875892,0.29215552,2362.9,2362.3,0.08465036]
[1725953877702,2.3748,2362.8,2362.2,3.0]
[1725953877909,2.3748,2362.8,2362.0,27.09]
[1725953877910,2.3748,2362.8,2362.1,3.0]
[1725953878969,2.3748,2362.8,2362.2,0.08466068]
[1725953879468,1.3253507,2363.2,2362.3,5.53655177]
[1725953879469,2.28,2363.0,2362.3,5.53655177]
[1725953879785,2.59635671,2363.0,2362.3,5.53655177]
[1725953880561,2.59635671,2363.0,2362.3,2.3158]
[1725953881305,2.59635671,2363.0,2362.3,5.53655177]
[1725953881902,2.59635671,2363.0,2362.3,5.62120433]
[1725953882202,2.28,2363.2,2362.3,5.62120433]
[1725953882412,2.28,2363.2,2362.4,3.0]
[1725953882663,2.28,2363.2,2362.5,0.0846436]
[1725953883198,2.339,2363.4,2362.6,2.4037]
[1725953883696,2.339,2363.4,2362.7,0.08464359]
[1725953883869,2.79379178,2363.4,2362.7,0.08464359]
[1725953884307,2.79379178,2363.4,2362.6,2.4037]
[1725953884908,2.79379178,2363.4,2362.4,3.0]
[1725953884909,2.79379178,2363.4,2362.5,0.08464006]
[1725953885210,2.79379178,2363.4,2362.4,5.4037]
[1725953885530,2.79379178,2363.4,2362.5,0.08464342]
[1725953885677,0.36773589,2363.3,2362.5,3.30539519]
[1725953886406,0.36773589,2363.3,2362.6,2.3946]
[1725953886610,0.36773589,2363.3,2362.7,0.08463798]
[1725953888847,2.339,2363.4,2362.7,0.08463798]
[1725953895959,2.339,2363.4,2362.6,5.3946]
[1725953896149,2.339,2363.4,2362.7,0.08463485]
[1725953896466,2.3406,2362.7,2361.9,19.8]
[1725953896761,5.56135177,2362.4,2361.7,2.4618]
[1725953896964,2.3406,2362.4,2361.7,2.4618]
[1725953897787,2.3406,2362.4,2361.8,0.08467313]
[1725953899543,2.3406,2362.4,2361.7,2.4618]
[1725953899748,2.3406,2362.4,2361.8,0.08466454]
[1725953900734,2.3406,2362.4,2361.8,0.33931099]
[1725953900936,2.3406,2362.4,2361.8,0.25464645]
[1725953901167,2.3406,2362.4,2361.5,3.55921518]
[1725953901320,2.4237,2362.3,2361.5,0.64389304]
[1725953901670,2.4237,2362.3,2361.5,0.08467786]
[1725953903691,2.403,2362.1,2361.3,20.60178393]
[1725953903983,2.403,2362.1,2361.4,0.0846837]
[1725953904185,2.403,2362.1,2361.3,0.87178393]
[1725953904560,2.403,2362.1,2361.4,0.08468405]
[1725953904757,0.56237518,2362.0,2361.4,0.08468405]
[1725953906195,0.56237518,2362.0,2361.3,0.87178393]
[1725953906347,0.56237518,2362.0,2361.4,0.08468373]
[1725953907352,2.403,2362.1,2361.4,0.08468373]
[1725953907989,2.403,2362.1,2361.3,0.87178393]
[1725953908795,2.403,2362.1,2361.4,0.08468373]
[1725953910389,3.28511163,2362.1,2361.4,0.08468373]
[1725953912382,0.88211163,2362.0,2361.4,0.08468373]
[1725953912584,0.88211163,2362.0,2361.2,2.4234]
[1725953912762,3.28511163,2362.1,2361.3,3.03602324]
[1725953913687,0.88211163,2362.0,2361.3,3.03602324]
[1725953914979,3.28511163,2362.1,2361.3,22.76602324]
[1725953915185,0.88211163,2362.0,2361.3,22.68134]
[1725953915493,3.28511163,2362.1,2361.4,2.510474]
[1725953915667,3.28511163,2362.1,2361.4,2.59515121]
[1725953916375,2.403,2362.1,2361.4,2.59515121]
[1725953918693,0.88211163,2362.2,2361.5,2.4616]
[1725953919001,3.16031163,2362.3,2361.6,0.08467581]
[1725953919182,3.16031163,2362.3,2361.6,0.79035079]
[1725953920895,3.16031163,2362.3,2361.6,0.70567498]
[1725953921198,3.16031163,2362.3,2361.6,20.43567498]
[1725953921492,3.16031163,2362.3,2361.7,0.08466752]
[1725953922668,3.16031163,2362.3,2361.7,2.38286177]
[1725953922872,2.2782,2362.3,2361.8,0.08466747]
[1725953924499,0.88211163,2362.4,2361.9,2.4812]
[1725953924711,2.3091,2362.5,2362.1,2.4812]
[1725953924712,0.88211163,2362.5,2362.1,2.4812]
[1725953924857,0.88211163,2363.1,2362.5,2.4812]
[1725953925063,3.97516257,2363.4,2362.6,0.08463365]
[1725953925064,0.88211163,2363.4,2362.6,0.08463365]
[1725953925310,0.88211163,2363.5,2362.6,0.96329219]
[1725953925507,3.19121163,2363.6,2362.6,7.18404396]
[1725953925668,0.88211163,2363.6,2362.8,3.22075177]
[1725953925864,0.88211163,2363.6,2362.6,3.96329219]
[1725953925865,0.88211163,2363.7,2363.1,2.2536]
[1725953926069,3.19121163,2363.9,2363.2,0.83204641]
[1725953926305,3.19121163,2363.9,2363.3,0.08461087]
[1725953926621,0.88211163,2364.0,2363.3,0.08461087]
[1725953926821,0.88211163,2363.9,2363.3,0.08461087]
[1725953927165,0.88211163,2364.0,2363.3,0.08461087]
[1725953927505,0.88211163,2363.9,2363.3,0.08461087]
[1725953928218,1.84765704,2364.0,2363.3,0.08461087]
[1725953929483,0.96554541,2364.0,2363.3,0.08461087]
[1725953929680,1.84765704,2364.0,2363.3,0.08461087]
[1725953930001,0.96554541,2364.0,2363.3,0.08461087]
[1725953930202,0.96554541,2364.0,2363.3,0.39317548]
[1725953931319,0.88211163,2364.4,2363.6,3.22075177]
[1725953931492,2.292,2364.5,2363.7,3.08459616]
[1725953931694,3.17411163,2364.5,2363.8,0.08459616]
[1725953932100,2.292,2364.5,2363.8,0.08459616]
[1725953932326,5.51275177,2364.5,2363.8,0.08459616]
[1725953932509,0.63948634,2364.4,2363.8,0.08459616]
[1725953932715,0.63948634,2364.4,2363.6,0.08459794]
[1725953934836,2.292,2364.5,2363.6,0.08459794]
[1725953935140,5.51275177,2364.5,2363.6,0.08459794]
[1725953935706,5.51275177,2364.5,2363.5,2.3185]
[1725953935974,3.22075177,2364.3,2363.5,2.3185]
[1725953936742,3.22075177,2364.1,2363.5,2.3185]
[1725953936972,0.56841518,2364.0,2363.1,2.40311091]
[1725953937192,3.22075177,2364.1,2363.1,22.13311091]
[1725953937779,2.4634,2364.2,2363.1,2.40311091]
[1725953937999,3.22075177,2363.9,2363.1,2.40311091]
[1725953938297,3.22075177,2363.9,2363.2,0.08461515]
[1725953938792,3.22075177,2364.1,2363.2,0.08461515]
[1725953938945,3.87737811,2364.1,2363.2,0.32492666]
[1725953939144,3.87737811,2364.1,2363.3,0.08461507]
[1725953940598,3.87737811,2364.1,2363.2,0.24031151]
[1725953940746,3.87737811,2364.1,2363.1,2.3185]
[1725953941082,3.22075177,2363.9,2363.2,0.08461659]
[1725953941684,3.87737811,2364.1,2363.2,0.08461659]
[1725953941894,3.22075177,2363.9,2363.1,2.3185]
[1725953942389,3.22075177,2363.9,2363.2,0.08462037]
[1725953942567,0.38773781,2363.9,2363.2,0.08462037]
[1725953946073,0.38773781,2363.9,2363.3,2.3845]
[1725953947313,3.87737811,2364.1,2363.3,2.3845]
[1725953947818,3.22075177,2363.9,2363.3,2.3845]
[1725953949709,2.3426,2364.0,2363.3,2.3845]
[1725953950330,3.22075177,2364.3,2363.5,2.4407]
[1725953950479,2.3787,2364.4,2363.6,0.08460365]
[1725953950677,0.45839791,2364.3,2363.6,0.08460365]
[1725953950999,2.3787,2364.4,2363.7,2.314]
[1725953951196,6.5254634,2364.7,2363.8,0.08459933]
[1725953951369,5.64335177,2364.7,2363.9,2.314]
[1725953951727,2.4022,2364.9,2364.1,2.4559]
[1725953951927,2.4022,2364.9,2364.2,0.08458606]
[1725953952084,0.56229518,2364.8,2364.2,0.08458606]
[1725953952715,3.78304695,2364.8,2364.2,0.08458606]
[1725953952927,3.78304695,2364.8,2364.1,2.4559]
[1725953953238,3.78304695,2364.8,2364.2,0.08458609]
[1725953953584,3.78304695,2364.8,2364.1,2.4559]
[1725953953822,0.61852469,2364.7,2364.1,2.4559]
[1725953956385,3.22075177,2364.8,2364.1,2.4559]
[1725953956593,0.88211163,2365.1,2364.1,2.4559]
[1725953956594,3.22075177,2365.0,2364.1,2.4559]
[1725953958325,0.88211163,2365.2,2364.3,2.4545]
[1725953958326,4.1028634,2365.2,2364.3,2.4545]
[1725953958524,3.22075177,2365.0,2364.3,2.4545]
[1725953958731,3.22075177,2364.8,2364.3,2.4545]
[1725953959036,3.22075177,2364.6,2364.1,2.2898]
[1725953960250,3.22075177,2364.4,2363.9,7.36]
[1725953960435,0.55594518,2364.3,2363.8,22.1529]
[1725953961025,3.22075177,2364.4,2363.8,22.1529]
[1725953962849,3.22075177,2364.4,2363.8,2.4229]
[1725953965509,5.57255177,2364.4,2363.8,2.4229]
[1725953965704,6.4546634,2364.4,2363.8,2.4229]
[1725953966256,0.88211163,2364.3,2363.8,2.4229]
[1725953966756,6.4546634,2364.4,2363.8,2.4229]
[1725953967052,1.41197493,2364.3,2363.8,2.4229]
[1725953967262,0.88211163,2364.2,2363.8,2.4229]
[1725953967442,1.41197493,2364.3,2363.8,2.4229]
[1725953967755,0.88211163,2364.2,2363.8,2.4229]
[1725953967913,1.71288105,2364.2,2363.8,2.4229]
[1725953968117,0.88211163,2364.1,2363.8,2.4229]
[1725953969219,0.88211163,2364.0,2363.8,2.4229]
[1725953969418,1.32316745,2364.1,2363.8,2.4229]
[1725953969419,0.88211163,2364.1,2363.8,2.4229]
[1725953969659,0.88211163,2364.0,2363.8,2.4229]
[1725953970143,0.88211163,2363.9,2363.8,2.4229]
[1725953971011,0.88211163,2363.9,2363.8,2.4093]
[1725953971443,1.32316745,2364.0,2363.8,2.4093]
[1725953971648,1.32316745,2363.9,2363.8,2.4093]
[1725953971861,1.32316745,2364.0,2363.8,2.4093]
[1725953972228,0.88652979,2363.9,2363.8,2.4093]
[1725953973145,0.88652979,2363.9,2363.8,2.65023]
[1725953973348,0.88652979,2364.2,2363.9,2.3598]
[1725953973661,0.88652979,2364.2,2364.0,0.08459131]
[1725953976919,0.88652979,2364.2,2364.1,2.2837]
[1725953977225,0.88652979,2364.3,2364.1,2.2837]
[1725953977559,0.88652979,2364.3,2364.1,2.52052913]
[1725953977762,0.88652979,2364.2,2364.1,2.52052913]
[1725953978059,0.88652979,2364.2,2364.1,2.2837]
[1725953979962,0.88652979,2364.3,2364.1,2.2837]
[1725953980461,0.88652979,2364.2,2364.1,2.2837]
[1725953981241,0.88652979,2364.3,2364.1,2.2837]
[1725953981533,0.88652979,2364.4,2364.2,0.23682913]
[1725953982845,0.88652979,2364.3,2364.2,0.23682913]
[1725953983040,0.88652979,2364.4,2364.2,0.23682913]
[1725953983542,0.88652979,2364.3,2364.2,0.23682913]
[1725953987182,0.88652979,2364.3,2363.9,5.3929]
[1725953987342,0.88652979,2364.3,2364.0,0.08458852]
[1725953988685,0.88652979,2364.2,2364.0,0.08458852]
[1725953989144,0.88652979,2364.2,2363.9,3.0]
[1725953989340,0.88652979,2364.2,2363.8,5.3198]
[1725953989567,0.88652979,2364.2,2363.9,0.08459111]
[1725953990178,0.88652979,2364.3,2363.9,0.08459111]
[1725953990379,0.88652979,2364.3,2364.0,2.4425]
[1725953990597,1.76422327,2364.5,2364.0,0.08459061]
[1725953990598,3.22075177,2364.5,2364.0,0.08459061]
[1725953990763,3.22075177,2364.1,2363.5,2.4425]
[1725953991444,3.22075177,2364.3,2363.5,2.4425]
[1725953991845,3.22075177,2364.3,2363.6,0.08460547]